bitfinex/quotes_BTCUSD_20250114
["timestamp","ask_amount","ask_price","bid_price","bid_amount"]
[1736880672840,0.96691651,96979.0,96978.0,0.0008537]
[1736880673049,0.86691651,96979.0,96978.0,0.0008537]
[1736880673872,0.86191651,96979.0,96978.0,0.0008537]
[1736880674090,0.87091651,96979.0,96978.0,0.0018537]
[1736880674462,0.86644116,96979.0,96978.0,0.0008537]
[1736880674691,0.80235157,96979.0,96978.0,0.0018537]
[1736880674895,0.80835157,96979.0,96978.0,0.0028537]
[1736880675273,0.80235157,96979.0,96978.0,0.0018537]
[1736880675679,0.80835157,96979.0,96978.0,0.0028537]
[1736880675899,1.01257849,96979.0,96978.0,0.0028537]
[1736880676629,1.01257849,96979.0,96978.0,0.0023537]
[1736880676630,1.06237849,96979.0,96978.0,0.0023537]
[1736880677378,1.07855073,96979.0,96978.0,0.0023537]
[1736880677582,1.26370204,96979.0,96978.0,0.0023537]
[1736880678194,1.21733225,96979.0,96978.0,0.0023537]
[1736880678812,0.809053,96968.0,96967.0,0.00179109]
[1736880679008,1.0268121,96968.0,96967.0,0.00179109]
[1736880679207,1.1052121,96968.0,96967.0,0.00179109]
[1736880679632,0.206325,96934.0,96931.0,0.08329172]
[1736880680148,0.21375512,96934.0,96931.0,0.08329172]
[1736880680364,0.21375512,96934.0,96931.0,0.00179172]
[1736880680970,0.21375512,96934.0,96933.0,0.0022859]
[1736880681176,0.21475512,96934.0,96933.0,0.0082859]
[1736880681609,0.00743012,96934.0,96933.0,0.0022859]
[1736880681781,0.01343012,96934.0,96933.0,0.0032859]
[1736880681983,0.006,96934.0,96933.0,0.0032859]
[1736880682133,0.01729963,96934.0,96933.0,0.0032859]
[1736880682510,0.01728296,96934.0,96933.0,0.0032859]
[1736880682616,0.01,96934.0,96933.0,0.0847859]
[1736880683026,0.004,96934.0,96933.0,0.0837859]
[1736880683256,0.01,96934.0,96933.0,0.0837859]
[1736880683481,0.004,96934.0,96933.0,0.0837859]
[1736880683889,0.20631,96942.0,96933.0,0.0837859]
[1736880684158,0.00731366,96934.0,96933.0,0.0837859]
[1736880684338,0.20631,96942.0,96933.0,0.0837859]
[1736880684705,0.00730044,96941.0,96933.0,0.0837859]
[1736880685512,0.206313,96940.0,96933.0,0.0837859]
[1736880685709,0.21359432,96940.0,96933.0,0.0837859]
[1736880686655,0.206324,96935.0,96933.0,0.0837859]
[1736880686860,0.206324,96935.0,96933.0,0.0022859]
[1736880687062,0.00730418,96934.0,96933.0,0.0022859]
[1736880688257,0.00730418,96934.0,96933.0,0.2870139]
[1736880688459,0.006,96934.0,96933.0,0.2870139]
[1736880688660,0.01,96934.0,96933.0,0.2870139]
[1736880688870,0.004,96934.0,96933.0,0.2870139]
[1736880689956,0.004,96934.0,96933.0,0.3338139]
[1736880690642,0.206293,96950.0,96938.0,0.206316]
[1736880690972,0.3061386,96950.0,96933.0,0.3338139]
[1736880691179,0.206302,96946.0,96934.0,0.206325]
[1736880691535,0.00730879,96945.0,96934.0,0.206325]
[1736880691723,0.206304,96944.0,96934.0,0.206325]
[1736880692010,0.21361174,96944.0,96934.0,0.206325]
[1736880692186,0.01912854,96943.0,96934.0,0.206325]
[1736880692689,0.00747808,96942.0,96934.0,0.206325]
[1736880693034,0.00747808,96942.0,96938.0,0.206316]
[1736880693235,0.005,96946.0,96938.0,0.206316]
[1736880693485,0.00750825,96945.0,96938.0,0.206316]
[1736880693690,0.00997498,96945.0,96938.0,0.206316]
[1736880693895,0.00997498,96945.0,96933.0,0.1274859]
[1736880694097,0.206276,96958.0,96933.0,0.1274859]
[1736880694098,0.003,96944.0,96935.0,0.12251512]
[1736880694270,0.002,96943.0,96942.0,0.206308]
[1736880694472,0.002,96943.0,96942.0,0.33253935]
[1736880694696,0.206257,96967.0,96942.0,0.33253935]
[1736880694697,0.003,96945.0,96942.0,0.1252]
[1736880695052,0.206282,96955.0,96942.0,0.1252]
[1736880695254,0.001,96944.0,96942.0,0.1252]
[1736880695461,0.002,96945.0,96942.0,0.1252]
[1736880695669,0.206289,96952.0,96942.0,0.1252]
[1736880696137,0.01005482,96951.0,96942.0,0.1252]
[1736880696542,0.206301,96946.0,96942.0,0.1252]
[1736880696948,0.206304,96944.0,96934.0,0.0792542]
[1736880697154,0.01003348,96945.0,96934.0,0.2855782]
[1736880697365,0.01002927,96943.0,96935.0,0.206323]
[1736880697497,0.01003067,96944.0,96935.0,0.206323]
[1736880697716,0.002,96945.0,96935.0,0.00103157]
[1736880697920,0.002,96945.0,96944.0,0.206304]
[1736880698156,0.206264,96963.0,96944.0,0.206304]
[1736880698379,0.206281,96955.0,96944.0,0.206304]
[1736880698554,0.002,96945.0,96944.0,0.206304]
[1736880699098,0.01617236,96956.0,96944.0,0.206304]
[1736880699301,0.206288,96952.0,96937.0,0.206319]
[1736880699539,0.206308,96943.0,96934.0,0.0792542]
[1736880699738,0.206323,96936.0,96934.0,0.0008542]
[1736880700528,0.10422692,96935.0,96934.0,0.0008542]
[1736880700730,0.16736852,96935.0,96934.0,0.0008542]
[1736880701476,0.10422692,96935.0,96934.0,0.0008542]
[1736880702088,0.11222692,96935.0,96934.0,0.0008542]
[1736880702496,0.11622692,96935.0,96934.0,0.0008542]
[1736880704529,0.02196894,96935.0,96934.0,0.0008542]
[1736880704663,0.02804894,96935.0,96934.0,0.0008542]
[1736880705577,0.02196894,96935.0,96934.0,0.0008542]
[1736880705934,0.02804894,96935.0,96934.0,0.0008542]
[1736880706363,0.02196894,96935.0,96934.0,0.0008542]
[1736880706980,0.00996894,96935.0,96934.0,0.0008542]
[1736880707381,0.06521619,96935.0,96934.0,0.0008542]
[1736880707594,0.0681382,96935.0,96934.0,0.0008542]
[1736880707767,0.00992201,96935.0,96934.0,0.0008542]
[1736880707970,0.01292201,96935.0,96934.0,0.0496542]
[1736880708179,0.003,96935.0,96934.0,0.0496542]
[1736880708578,0.003,96935.0,96934.0,0.1295542]
[1736880709822,0.002,96935.0,96934.0,0.1295542]
[1736880710197,0.003,96935.0,96934.0,0.1295542]
[1736880710639,0.01617361,96943.0,96942.0,0.206308]
[1736880711057,0.206262,96964.0,96951.0,0.206289]
[1736880711266,0.15,96963.0,96951.0,0.206289]
[1736880711479,0.00990457,96960.0,96948.0,0.206295]
[1736880711883,0.00990598,96959.0,96948.0,0.206295]
[1736880712586,0.01617224,96957.0,96948.0,0.206295]
[1736880712939,0.10422692,96962.0,96949.0,0.206294]
[1736880712940,0.00990177,96956.0,96949.0,0.206294]
[1736880713290,0.3298,96964.0,96955.0,0.0799]
[1736880713448,0.3298,96964.0,96958.0,0.206274]
[1736880713649,0.00990176,96963.0,96958.0,0.206274]
[1736880713867,0.003,96960.0,96956.0,0.206279]
[1736880714071,0.002,96959.0,96956.0,0.206279]
[1736880714274,0.002,96959.0,96955.0,0.0799]
[1736880714275,0.01189615,96959.0,96955.0,0.0799]
[1736880714432,0.00989615,96959.0,96955.0,0.0799]
[1736880714695,0.36756738,96964.0,96956.0,0.206279]
[1736880714902,0.00989615,96958.0,96956.0,0.206279]
[1736880715102,0.002,96959.0,96956.0,0.206279]
[1736880715301,0.00989475,96957.0,96956.0,0.206279]
[1736880715504,0.001,96959.0,96956.0,0.206279]
[1736880715950,0.00989615,96958.0,96956.0,0.206279]
[1736880716473,0.00989615,96958.0,96955.0,0.0799]
[1736880717222,0.02606782,96958.0,96955.0,0.0799]
[1736880717469,0.01617167,96958.0,96955.0,0.0799]
[1736880717641,0.01617167,96958.0,96946.0,0.01019392]
[1736880717642,0.206279,96956.0,96946.0,0.0799]
[1736880717844,0.206293,96950.0,96946.0,0.0799]
[1736880718126,0.01024224,96949.0,96946.0,0.0799]
[1736880718573,0.31050592,96956.0,96946.0,0.0799]
[1736880718574,0.206279,96956.0,96946.0,0.0799]
[1736880718731,0.01030109,96948.0,96946.0,0.0799]
[1736880718930,0.206279,96956.0,96946.0,0.0809]
[1736880719196,0.206279,96956.0,96946.0,0.0779559]
[1736880719395,0.22245562,96954.0,96946.0,0.0779559]
[1736880719806,0.206287,96952.0,96946.0,0.0779559]
[1736880720010,0.206295,96949.0,96946.0,0.001]
[1736880720147,0.206298,96947.0,96946.0,0.001]
[1736880720351,0.206319,96937.0,96934.0,0.0008542]
[1736880720766,0.206323,96935.0,96934.0,0.0008542]
[1736880720982,0.01036857,96936.0,96934.0,0.0008542]
[1736880721181,0.01036717,96935.0,96934.0,0.0008542]
[1736880721623,0.002,96937.0,96934.0,0.0008542]
[1736880722000,0.01036155,96936.0,96934.0,0.0008542]
[1736880722423,0.002,96935.0,96934.0,0.0008542]
[1736880722635,0.01236015,96935.0,96934.0,0.0008542]
[1736880722841,0.002,96935.0,96934.0,0.0008542]
[1736880723424,0.003,96935.0,96934.0,0.0008542]
[1736880723640,0.0451668,96935.0,96934.0,0.0008542]
[1736880724025,0.05552695,96935.0,96934.0,0.0008542]
[1736880724279,0.01336015,96935.0,96934.0,0.0008542]
[1736880724997,0.01336015,96935.0,96934.0,0.1315542]
[1736880725153,0.005,96935.0,96934.0,0.13258578]
[1736880726510,0.003,96935.0,96934.0,0.13258578]
[1736880726670,0.003,96935.0,96934.0,0.1315542]
[1736880727294,0.206303,96945.0,96934.0,0.1315542]
[1736880727499,0.22711272,96945.0,96935.0,0.206323]
[1736880727699,0.01036736,96944.0,96935.0,0.206323]
[1736880728084,0.01036736,96944.0,96935.0,0.412646]
[1736880728280,0.00179424,96951.0,96935.0,0.412646]
[1736880728281,0.00179424,96951.0,96936.0,0.00103155]
[1736880728526,0.00179424,96951.0,96944.0,0.289504]
[1736880728527,0.002,96945.0,96944.0,0.289504]
[1736880728735,0.002,96945.0,96944.0,0.33070591]
[1736880728943,0.006,96945.0,96944.0,0.33060591]
[1736880729185,0.002,96945.0,96944.0,0.33060591]
[1736880729375,0.002,96945.0,96944.0,0.37810591]
[1736880729815,0.002,96945.0,96944.0,0.48233283]
[1736880730207,0.002,96945.0,96944.0,0.50262803]
[1736880730415,0.00179424,96951.0,96944.0,0.336904]
[1736880730842,0.00179424,96951.0,96944.0,0.1307]
[1736880731288,0.001,96945.0,96944.0,0.1317]
[1736880731465,0.01617278,96950.0,96944.0,0.1307]
[1736880731669,0.01617278,96950.0,96945.0,0.412604]
[1736880732170,0.01617278,96950.0,96944.0,0.1317]
[1736880732171,0.01617278,96950.0,96944.0,0.1307]
[1736880732674,0.01617278,96950.0,96944.0,0.1317]
[1736880733754,0.00179424,96946.0,96944.0,0.1307]
[1736880734495,0.00179424,96946.0,96944.0,0.0832]
[1736880734703,0.00179424,96946.0,96939.0,0.206315]
[1736880735025,0.00179424,96946.0,96940.0,0.206313]
[1736880735408,0.00179424,96946.0,96944.0,0.206304]
[1736880735611,0.00179424,96946.0,96944.0,0.207304]
[1736880735813,0.00179424,96946.0,96944.0,0.206304]
[1736880736240,0.00179424,96946.0,96945.0,0.23595836]
[1736880736445,0.00179424,96946.0,96945.0,0.23492692]
[1736880737303,0.00179424,96946.0,96945.0,0.1307]
[1736880737528,0.00179424,96946.0,96945.0,0.1413072]
[1736880737730,0.00279424,96946.0,96945.0,0.0106072]
[1736880738315,0.01147389,96946.0,96945.0,0.0106072]
[1736880738629,0.00279424,96946.0,96945.0,0.0126072]
[1736880738833,0.00279424,96946.0,96945.0,0.002]
[1736880739039,0.00179424,96946.0,96939.0,0.206315]
[1736880739448,0.206302,96945.0,96934.0,0.0008542]
[1736880739650,0.12581997,96944.0,96934.0,0.0008542]
[1736880739997,0.412638,96938.0,96934.0,0.0008542]
[1736880740313,0.00861061,96937.0,96934.0,0.0008542]
[1736880740729,0.206318,96938.0,96934.0,0.0008542]
[1736880740930,0.00860921,96936.0,96934.0,0.0008542]
[1736880741141,0.206308,96942.0,96934.0,0.0008542]
[1736880741437,0.00860781,96935.0,96934.0,0.0008542]
[1736880741658,0.206308,96942.0,96934.0,0.0008542]
[1736880741796,0.002,96937.0,96934.0,0.0008542]
[1736880741999,0.002,96937.0,96934.0,0.2071792]
[1736880742206,0.00859798,96936.0,96934.0,0.2071792]
[1736880742622,0.002,96935.0,96934.0,0.2071792]
[1736880743426,0.002,96935.0,96934.0,0.2884792]
[1736880743830,0.3298,96943.0,96939.0,0.206313]
[1736880744233,0.0086092,96942.0,96939.0,0.206313]
[1736880745391,0.0096092,96942.0,96939.0,0.206313]
[1736880746610,0.0096092,96942.0,96939.0,0.2071674]
[1736880746869,0.0096092,96942.0,96939.0,0.0008544]
[1736880747092,0.03472434,96941.0,96939.0,0.0008544]
[1736880747311,0.0086064,96940.0,96939.0,0.0008544]
[1736880748590,0.742416,96943.0,96939.0,0.0008544]
[1736880748822,0.00961061,96940.0,96939.0,0.0008544]
[1736880749033,0.001,96940.0,96939.0,0.0008544]
[1736880749242,0.00961061,96940.0,96939.0,0.0008544]
[1736880749505,0.07760352,96940.0,96939.0,0.0008544]
[1736880749684,0.19044105,96940.0,96939.0,0.0008544]
[1736880750233,0.52024105,96940.0,96939.0,0.0008544]
[1736880750702,0.52624105,96940.0,96939.0,0.0008544]
[1736880751184,0.34441061,96940.0,96939.0,0.0008544]
[1736880751653,0.33841061,96940.0,96939.0,0.0008544]
[1736880751887,0.34441061,96940.0,96939.0,0.0472544]
[1736880752144,0.01761061,96940.0,96939.0,0.0472544]
[1736880752348,0.01761061,96940.0,96939.0,0.15251276]
[1736880752604,0.01761061,96940.0,96939.0,0.23381276]
[1736880752794,0.006,96940.0,96939.0,0.31961249]
[1736880753287,0.00179424,96946.0,96945.0,0.206302]
[1736880755077,0.00179424,96946.0,96945.0,0.208302]
[1736880755533,0.00179424,96946.0,96945.0,0.002]
[1736880755678,0.05576159,96946.0,96945.0,0.002]
[1736880755883,0.06433937,96946.0,96945.0,0.003]
[1736880756091,0.01037202,96946.0,96945.0,0.003]
[1736880756414,0.02654559,96946.0,96939.0,0.1285544]
[1736880756591,0.02654559,96946.0,96940.0,0.206313]
[1736880756773,0.02654559,96946.0,96945.0,0.002]
[1736880756973,0.02654559,96946.0,96939.0,0.1285544]
[1736880757172,0.02854559,96946.0,96940.0,0.206313]
[1736880757373,0.02854559,96946.0,96939.0,0.1285544]
[1736880758019,0.02654559,96946.0,96939.0,0.1285544]
[1736880758227,0.02754559,96946.0,96939.0,0.1285544]
[1736880758451,0.02356328,96945.0,96939.0,0.1285544]
[1736880758630,0.02356328,96945.0,96940.0,0.206313]
[1736880758859,0.00857497,96944.0,96940.0,0.206313]
[1736880759040,0.00857497,96944.0,96939.0,0.0008544]
[1736880759240,0.206306,96943.0,96939.0,0.0008544]
[1736880759637,0.00860408,96942.0,96939.0,0.0008544]
[1736880760442,0.206311,96941.0,96939.0,0.0008544]
[1736880760717,0.04421889,96940.0,96939.0,0.0008544]
[1736880760876,0.05282016,96940.0,96939.0,0.0008544]
[1736880762286,0.38262016,96940.0,96939.0,0.0008544]
[1736880762545,0.33840127,96940.0,96939.0,0.0008544]
[1736880763387,0.33840127,96940.0,96939.0,0.0018544]
[1736880764353,0.33840127,96940.0,96939.0,0.0008544]
[1736880769485,0.44262819,96940.0,96939.0,0.0008544]
[1736880770885,0.44962819,96940.0,96939.0,0.0008544]
[1736880771576,0.45162819,96940.0,96939.0,0.0008544]
[1736880771784,0.45162819,96940.0,96932.0,0.00078622]
[1736880771785,0.206324,96935.0,96932.0,0.00078622]
[1736880771989,0.31054192,96939.0,96932.0,0.00093483]
[1736880772243,0.00857166,96934.0,96932.0,0.00093483]
[1736880772437,0.206319,96937.0,96932.0,0.00093483]
[1736880772641,0.00857026,96933.0,96932.0,0.00093483]
[1736880772840,0.206319,96937.0,96932.0,0.00093483]
[1736880773054,0.00857026,96933.0,96932.0,0.00093483]
[1736880773253,0.206319,96937.0,96932.0,0.00093483]
[1736880773458,0.00857026,96933.0,96932.0,0.00093483]
[1736880773650,0.206328,96933.0,96932.0,0.00093483]
[1736880773780,0.21489826,96933.0,96932.0,0.00093483]
[1736880774220,0.54469826,96933.0,96932.0,0.00093483]
[1736880774444,0.33837026,96933.0,96932.0,0.00093483]
[1736880775437,0.34037026,96933.0,96932.0,0.00093483]
[1736880776232,0.34437026,96933.0,96932.0,0.00093483]
[1736880776610,0.7204168,96933.0,96932.0,0.00093483]
[1736880777322,0.7204168,96933.0,96932.0,0.00093483]
[1736880778275,0.65492518,96933.0,96932.0,0.00093483]
[1736880780383,0.65092518,96933.0,96932.0,0.00093483]
[1736880780604,0.64892518,96933.0,96932.0,0.00093483]
[1736880780876,0.66192518,96933.0,96932.0,0.00093483]
[1736880781138,0.55769826,96933.0,96932.0,0.00093483]
[1736880781293,0.56373826,96933.0,96932.0,0.00093483]
[1736880781962,0.57991427,96933.0,96932.0,0.00093483]
[1736880782507,0.56373826,96933.0,96932.0,0.00093483]
[1736880782836,0.64074399,96933.0,96932.0,0.00093483]
[1736880783039,0.56373826,96933.0,96932.0,0.00093483]
[1736880784183,0.35137026,96933.0,96932.0,0.00093483]
[1736880784390,0.35137026,96933.0,96932.0,0.08183483]
[1736880784591,0.013,96933.0,96932.0,0.12923483]
[1736880784813,0.013,96933.0,96932.0,0.48303441]
[1736880785022,0.009,96933.0,96932.0,0.48200291]
[1736880785215,0.009,96933.0,96932.0,0.49230119]
[1736880785439,0.01,96933.0,96932.0,0.52296982]
[1736880785614,0.01,96933.0,96932.0,0.68391301]
[1736880785996,0.001,96933.0,96932.0,0.35414493]
[1736880786353,0.002,96933.0,96932.0,0.17020174]
[1736880786569,0.001,96933.0,96932.0,0.17123324]
[1736880786762,0.00179257,96944.0,96932.0,0.17123324]
[1736880786966,0.00179257,96944.0,96943.0,0.206306]
[1736880787166,0.00179257,96944.0,96939.0,0.206313]
[1736880787954,0.02295978,96944.0,96939.0,0.206313]
[1736880788342,0.00179257,96944.0,96932.0,0.12923483]
[1736880788619,0.00179257,96944.0,96941.0,0.20631]
[1736880788955,0.00179257,96944.0,96934.0,0.206325]
[1736880789163,0.00719775,96943.0,96938.0,0.206316]
[1736880789366,0.00179257,96944.0,96938.0,0.206316]
[1736880789563,0.00719634,96942.0,96938.0,0.206316]
[1736880789766,0.00279257,96944.0,96938.0,0.206316]
[1736880790124,0.00379257,96944.0,96938.0,0.206316]
[1736880790581,0.00819775,96943.0,96942.0,0.206308]
[1736880790797,0.00179257,96944.0,96942.0,0.206308]
[1736880791023,0.00719775,96943.0,96942.0,0.206308]
[1736880791268,0.00279257,96944.0,96942.0,0.206308]
[1736880791468,0.00279257,96944.0,96942.0,0.287208]
[1736880791674,0.00379257,96944.0,96942.0,0.287208]
[1736880791913,0.00716034,96943.0,96942.0,0.287208]
[1736880792079,0.00716034,96943.0,96942.0,0.43883492]
[1736880792377,0.00379257,96944.0,96942.0,0.43883492]
[1736880792635,0.00379257,96944.0,96943.0,0.10422692]
[1736880792809,0.00379257,96944.0,96943.0,0.11381995]
[1736880792944,0.00379257,96944.0,96943.0,0.00959303]
[1736880792945,0.00279257,96944.0,96943.0,0.00959303]
[1736880793955,0.00279257,96944.0,96943.0,0.09073741]
[1736880794133,0.00379257,96944.0,96943.0,0.09073741]
[1736880794314,0.01098742,96944.0,96943.0,0.10150639]
[1736880794512,0.00898742,96944.0,96943.0,0.28566475]
[1736880794761,0.00898742,96944.0,96943.0,0.28463331]
[1736880794962,0.00998742,96944.0,96943.0,0.28563331]
[1736880795523,0.00998742,96944.0,96943.0,0.29722634]
[1736880795877,0.00279257,96944.0,96943.0,0.29722634]
[1736880796230,0.00179257,96944.0,96943.0,0.29622634]
[1736880796660,0.00279257,96944.0,96943.0,0.29822634]
[1736880796815,0.00179257,96944.0,96943.0,0.29622634]
[1736880797201,0.00279257,96944.0,96943.0,0.29722634]
[1736880797852,0.00279257,96944.0,96943.0,0.09349303]
[1736880798071,0.00279257,96944.0,96943.0,0.09452444]
[1736880798901,0.00279257,96944.0,96943.0,0.08493141]
[1736880807464,0.00279257,96944.0,96943.0,0.18915833]
[1736880807667,0.00279257,96944.0,96943.0,0.33915833]
[1736880807987,0.00279257,96944.0,96943.0,0.44419632]
[1736880808188,0.00179424,96951.0,96950.0,0.477591]
[1736880808395,0.00179424,96951.0,96950.0,0.58181792]
[1736880809322,0.00179424,96951.0,96950.0,0.60481792]
[1736880810125,0.00279424,96951.0,96950.0,0.70198243]
[1736880810398,0.00279424,96951.0,96950.0,0.80620935]
[1736880810596,0.00179424,96951.0,96950.0,0.80620935]
[1736880810797,0.00279424,96951.0,96950.0,0.81120935]
[1736880811775,0.00279424,96951.0,96950.0,0.71904484]
[1736880812333,0.00279424,96951.0,96950.0,0.72862795]
[1736880813526,0.00279424,96951.0,96950.0,0.71904484]
[1736880817081,2.4e-07,96951.0,96950.0,0.81904484]
[1736880817663,2.4e-07,96951.0,96950.0,2.31904484]
[1736880818374,2.4e-07,96951.0,96950.0,2.32862101]
[1736880818524,0.00112146,96979.0,96978.0,0.206232]
[1736880818726,0.00112146,96979.0,96978.0,0.2344652]
[1736880818925,0.00112146,96979.0,96977.0,0.206234]
[1736880819717,0.00117091,96979.0,96977.0,0.206234]
[1736880820603,0.00117091,96979.0,96977.0,0.205234]
[1736880821018,0.00117091,96979.0,96970.0,0.206249]
[1736880821169,0.00117091,96979.0,96973.0,0.206241]
[1736880821731,0.00634346,96978.0,96970.0,0.206249]
[1736880822629,0.00634346,96978.0,96974.0,0.206239]
[1736880822850,0.00634346,96978.0,96974.0,0.412479]
[1736880823047,0.00634346,96978.0,96974.0,0.206239]
[1736880823349,0.00734346,96978.0,96974.0,0.412478]
[1736880823679,0.00934346,96978.0,96974.0,0.412478]
[1736880823892,0.01034346,96978.0,96974.0,0.412478]
[1736880824089,0.00734346,96978.0,96974.0,0.412478]
[1736880824291,0.00834346,96978.0,96974.0,0.412478]
[1736880825630,0.00734346,96978.0,96974.0,0.412478]
[1736880825857,0.00634346,96978.0,96974.0,0.412478]
[1736880826225,0.00634346,96978.0,96974.0,0.413478]
[1736880826443,0.00634346,96978.0,96974.0,0.207239]
[1736880827452,0.00634346,96978.0,96974.0,0.413478]
[1736880827680,0.00634346,96978.0,96976.0,0.206236]
[1736880828062,0.00813603,96978.0,96976.0,0.31046292]
[1736880828280,9.4e-07,96979.0,96977.0,0.46055789]
[1736880828484,9.4e-07,96979.0,96978.0,0.707432]
[1736880828689,9.4e-07,96979.0,96978.0,2.31165892]
[1736880828846,9.4e-07,96979.0,96978.0,2.34807195]
[1736880829047,9.4e-07,96979.0,96978.0,2.38001543]
[1736880829637,9.4e-07,96979.0,96978.0,2.51823968]
[1736880829775,9.4e-07,96979.0,96978.0,2.52523968]
[1736880830190,0.00179362,96991.0,96990.0,0.356206]
[1736880830387,0.00179362,96991.0,96990.0,0.51682373]
[1736880830625,0.00179362,96991.0,96990.0,0.20635461]
[1736880832359,0.00279362,96991.0,96990.0,0.21835461]
[1736880832560,0.00279362,96991.0,96990.0,0.21135461]
[1736880832561,0.00179362,96991.0,96990.0,0.21135461]
[1736880832762,0.00179362,96991.0,96990.0,0.20635461]
[1736880832990,0.00279362,96991.0,96990.0,0.21135461]
[1736880833163,0.00279362,96991.0,96990.0,0.25521476]
[1736880834629,0.00179362,96991.0,96990.0,0.25521476]
[1736880836263,0.00179362,96991.0,96990.0,0.21335461]
[1736880845829,0.00179362,96991.0,96990.0,0.00714861]
[1736880846577,0.00179362,96991.0,96990.0,0.00817954]
[1736880848754,0.00179362,96991.0,96990.0,0.01868439]
[1736880849101,0.00179362,96991.0,96990.0,0.00817954]
[1736880849676,0.00179362,96991.0,96990.0,0.00714861]
[1736880850713,0.00179362,96991.0,96990.0,0.04910587]
[1736880850945,0.00179362,96991.0,96990.0,0.0501368]
[1736880851924,0.00179362,96991.0,96990.0,0.00997105]
[1736880855870,0.00179362,96991.0,96990.0,0.08517105]
[1736880858973,0.00179362,96991.0,96990.0,0.00894012]
[1736880861403,0.00179362,96991.0,96990.0,0.00997111]
[1736880861541,0.00179362,96991.0,96990.0,0.08967111]
[1736880861738,0.00179362,96991.0,96990.0,0.46330754]
[1736880861943,0.00179362,96991.0,96990.0,0.46227655]
[1736880863124,0.00179362,96991.0,96990.0,0.49424015]
[1736880863258,0.00079362,96991.0,96990.0,0.48924015]
[1736880863471,0.00079362,96991.0,96990.0,0.45727655]
[1736880863696,0.00079362,96991.0,96990.0,0.48922742]
[1736880864105,0.00079362,96991.0,96990.0,0.48722742]
[1736880864548,0.00179362,96991.0,96990.0,0.49922742]
[1736880865398,0.00179362,96991.0,96990.0,0.72884888]
[1736880866401,0.00179362,96991.0,96990.0,0.49922742]
[1736880866587,0.00179362,96991.0,96990.0,0.46727655]
[1736880867243,0.00179362,96991.0,96990.0,0.49920964]
[1736880867381,0.00179362,96991.0,96990.0,0.46727655]
[1736880867803,0.00179362,96991.0,96990.0,0.49920417]
[1736880869237,0.0757,97030.0,97023.0,0.206136]
[1736880869784,0.01795475,97024.0,97023.0,0.206136]
[1736880870166,0.00179277,97024.0,97023.0,0.206136]
[1736880870779,0.00379277,97024.0,97023.0,0.206136]
[1736880871185,0.00179277,97024.0,97023.0,0.206136]
[1736880871514,0.00479277,97024.0,97023.0,0.206136]
[1736880871733,0.00179277,97024.0,97018.0,0.00956675]
[1736880871949,0.00783277,97024.0,97018.0,0.00956675]
[1736880872151,0.00783277,97024.0,97023.0,0.001]
[1736880872391,0.00783277,97024.0,97023.0,0.002]
[1736880872562,0.00783277,97024.0,97023.0,0.001]
[1736880872769,0.00379277,97024.0,97023.0,0.001]
[1736880873269,0.00379277,97024.0,97023.0,0.02181687]
[1736880873473,0.00379277,97024.0,97023.0,0.02081687]
[1736880873707,0.00179277,97024.0,97023.0,0.02081687]
[1736880873910,0.00379277,97024.0,97023.0,0.02081687]
[1736880874074,0.00379277,97024.0,97021.0,0.412278]
[1736880874273,0.00179277,97024.0,97021.0,0.412278]
[1736880875629,0.00579277,97024.0,97021.0,0.412278]
[1736880876007,0.00179277,97024.0,97021.0,0.412278]
[1736880876232,0.00179277,97024.0,97021.0,0.413278]
[1736880877192,0.00179277,97024.0,97021.0,0.41179455]
[1736880877732,0.00179277,97024.0,97023.0,0.206136]
[1736880879946,0.01795457,97024.0,97023.0,0.206136]
[1736880887894,0.01795457,97024.0,97023.0,0.33336292]
[1736880888108,0.00179277,97024.0,97023.0,0.61216292]
[1736880888307,0.00179277,97024.0,97023.0,0.70480162]
[1736880889023,7.7e-07,97024.0,97023.0,0.80480162]
[1736880889233,7.7e-07,97024.0,97023.0,0.81437112]
[1736880889613,7.7e-07,97024.0,97023.0,0.96011079]
[1736880890233,7.7e-07,97024.0,97023.0,0.96311079]
[1736880890635,7.7e-07,97024.0,97023.0,1.05493724]
[1736880891432,7.7e-07,97024.0,97023.0,0.82537112]
[1736880892639,7.7e-07,97024.0,97023.0,0.72537112]
[1736880894629,7.7e-07,97024.0,97023.0,0.72487112]
[1736880894842,7.7e-07,97024.0,97023.0,0.81638312]
[1736880895555,7.7e-07,97024.0,97023.0,0.72487112]
[1736880897971,7.7e-07,97024.0,97023.0,0.81637267]
[1736880898569,7.7e-07,97024.0,97023.0,0.72487112]
[1736880901215,7.7e-07,97024.0,97023.0,0.81643339]
[1736880902163,7.7e-07,97024.0,97023.0,0.72487112]
[1736880902973,7.7e-07,97024.0,97023.0,0.86217828]
[1736880904516,7.7e-07,97024.0,97023.0,0.72487112]
[1736880905085,7.7e-07,97024.0,97023.0,0.86217828]
[1736880906559,7.7e-07,97024.0,97023.0,0.72487112]
[1736880907133,7.7e-07,97024.0,97023.0,0.82487112]
[1736880907351,7.7e-07,97024.0,97023.0,2.50794734]
[1736880907545,7.7e-07,97024.0,97023.0,1.00794734]
[1736880907879,7.7e-07,97024.0,97023.0,0.82487112]
[1736880910180,7.7e-07,97024.0,97023.0,0.48043242]
[1736880910925,7.7e-07,97024.0,97023.0,0.50343242]
[1736880912599,7.7e-07,97024.0,97023.0,0.50522498]
[1736880913016,7.7e-07,97024.0,97023.0,0.25099806]
[1736880913215,7.7e-07,97024.0,97023.0,0.22799806]
[1736880913677,7.7e-07,97024.0,97023.0,0.22499806]
[1736880914077,7.7e-07,97024.0,97023.0,0.22599806]
[1736880914303,7.7e-07,97024.0,97023.0,0.21642856]
[1736880914585,7.7e-07,97024.0,97023.0,0.20842856]
[1736880914914,7.7e-07,97024.0,97023.0,0.21042856]
[1736880915322,7.7e-07,97024.0,97023.0,0.20742856]
[1736880915541,7.7e-07,97024.0,97023.0,0.21042856]
[1736880915746,7.7e-07,97024.0,97023.0,0.21142856]
[1736880915953,7.7e-07,97024.0,97023.0,0.00579256]
[1736880916223,0.07500077,97024.0,97023.0,0.00579256]
[1736880916474,0.08752621,97024.0,97023.0,0.00579256]
[1736880916640,0.08752621,97024.0,97023.0,0.00479256]
[1736880917057,0.08752621,97024.0,97023.0,0.00579256]
[1736880917583,0.08752621,97024.0,97023.0,0.00279256]
[1736880917779,0.08752621,97024.0,97023.0,0.00479256]
[1736880918080,0.07500077,97024.0,97023.0,0.00479256]
[1736880918701,0.07500077,97024.0,97023.0,0.21092856]
[1736880918986,0.07500077,97024.0,97023.0,0.00379256]
[1736880919444,0.07500077,97024.0,97023.0,0.00479256]
[1736880922518,0.07399796,97024.0,97023.0,0.00479256]
[1736880924764,0.07485156,97024.0,97023.0,0.00479256]
[1736880927459,0.17907848,97024.0,97023.0,0.00479256]